fUSD/lending_fUSD_20260311
["ID","MTS","AMOUNT","RATE_DAILY","PERIOD"]
[408206362,1773235844225,-1212.18103635,0.00019999,5]
[408206363,1773235844236,-350.0,0.00019999,2]
[408206364,1773235844246,-150.0,0.00019999,2]
[408206365,1773235844255,-500.0,0.00019999,2]
[408206366,1773235844265,-500.0,0.00019999,2]
[408206367,1773235844275,-500.0,0.00019999,2]
[408206368,1773235844284,-500.0,0.00019999,2]
[408206369,1773235844293,-500.0,0.00019999,2]
[408206370,1773235844302,-500.0,0.00019999,2]
[408206371,1773235844312,-500.0,0.00019999,2]
[408206373,1773235844321,-500.0,0.00019999,2]
[408206375,1773235844330,-500.0,0.00019999,2]
[408206376,1773235844339,-500.0,0.00019999,2]
[408206378,1773235844348,-506.32926117,0.00019999,2]
[408206380,1773235844357,-1091.81,0.00019999,2]
[408206382,1773235844369,-1091.81,0.00019999,2]
[408206383,1773235844379,-1091.81,0.00019999,2]
[408206384,1773235844389,-1091.81,0.00019999,2]
[408206385,1773235844398,-1091.81,0.00019999,2]
[408206386,1773235844407,-1091.81,0.00019999,2]
[408206387,1773235844417,-1091.81,0.00019999,2]
[408206388,1773235844426,-1091.81,0.00019999,2]
[408206389,1773235844435,-1091.81,0.00019999,2]
[408206390,1773235844445,-1091.81,0.00019999,2]
[408206391,1773235844456,-1091.81,0.00019999,2]
[408206392,1773235844466,-1091.81,0.00019999,2]
[408206393,1773235844476,-1091.81,0.00019999,2]
[408206394,1773235844486,-1091.81,0.00019999,2]
[408206395,1773235844495,-1091.81,0.00019999,2]
[408206396,1773235844505,-1091.81,0.00019999,2]
[408206397,1773235844514,-1091.81,0.00019999,2]
[408206398,1773235844526,-1091.81,0.00019999,2]
[408206399,1773235844535,-1091.81,0.00019999,2]
[408206400,1773235844545,-1091.81,0.00019999,2]
[408206401,1773235844554,-1091.81,0.00019999,2]
[408206402,1773235844564,-1091.81,0.00019999,2]
[408206403,1773235844574,-1091.81,0.00019999,2]
[408206404,1773235844584,-1092.03,0.00019999,2]
[408206405,1773235844593,-500.0,0.00019999,2]
[408206406,1773235844602,-500.0,0.00019999,2]
[408206408,1773235844611,-500.0,0.00019999,2]
[408206409,1773235844620,-500.0,0.00019999,2]
[408206410,1773235844628,-221.07,0.00019999,2]
[408206411,1773235844639,-500.0,0.00019999,2]
[408206412,1773235844648,-504.64296701,0.00019999,2]
[408206413,1773235844657,-500.0,0.00019999,2]
[408206414,1773235844667,-500.0,0.00019999,2]
[408206415,1773235844676,-500.0,0.00019999,2]
[408206416,1773235844686,-500.0,0.00019999,2]
[408206417,1773235844695,-500.0,0.00019999,2]
[408206418,1773235844705,-500.0,0.00019999,2]
[408206419,1773235844714,-500.0,0.00019999,2]
[408206420,1773235844724,-500.0,0.00019999,2]
[408206421,1773235844734,-500.0,0.00019999,2]
[408206422,1773235844744,-359.77506587,0.00019999,2]
[408206423,1773235844758,-500.0,0.00019999,2]
[408206424,1773235844767,-500.0,0.00019999,2]
[408206425,1773235844777,-500.0,0.00019999,2]
[408206426,1773235844787,-500.0,0.00019999,2]
[408206427,1773235844796,-500.0,0.00019999,2]
[408206428,1773235844806,-3856.01,0.00019999,2]
[408206429,1773235844817,-178.759,0.00019999,2]
[408206430,1773235844827,-500.0,0.00019999,2]
[408206431,1773235844836,-500.0,0.00019999,2]
[408206432,1773235844846,-503.86249418,0.00019999,2]
[408206433,1773235844857,-500.0,0.00019999,2]
[408206434,1773235844871,-500.0,0.00019999,2]
[408206435,1773235844882,-500.0,0.00019999,2]
[408206436,1773235844891,-500.0,0.00019999,2]
[408206437,1773235844900,-500.0,0.00019999,2]
[408206438,1773235844911,-500.0,0.00019999,2]
[408206439,1773235844920,-500.0,0.00019999,2]
[408206440,1773235844929,-500.0,0.00019999,2]
[408206441,1773235844938,-500.0,0.00019999,2]
[408206442,1773235844947,-500.0,0.00019999,2]
[408206443,1773235844957,-506.82131153,0.00019999,2]
[408206444,1773235844967,-500.0,0.00019999,2]
[408206445,1773235844976,-500.0,0.00019999,2]
[408206446,1773235844986,-500.0,0.00019999,2]
[408206447,1773235844995,-500.0,0.00019999,2]
[408206448,1773235845004,-607.88103677,0.00019999,2]
[408206449,1773235845013,-1228.35243259,0.00019999,5]
[408206450,1773235845022,-482.2001122,0.00019999,2]
[408206451,1773235845032,-29824.1480112,0.00019999,2]
[408206452,1773235845042,-500.0,0.00019999,2]
[408206453,1773235845051,-505.20001815,0.00019999,2]
[408206454,1773235845061,-3000.0,0.00019999,2]
[408206455,1773235845070,-3000.0,0.00019999,7]
[408206456,1773235845080,-431.50463315,0.00019999,2]
[408206457,1773235845089,-4108.0,0.0002,2]
[408206458,1773235845099,-3553.0,0.0002,2]
[408206459,1773235845108,-1455325.9308639,0.0002,2]
[408206460,1773235845121,-137586.81665908,0.0002,2]
[408206461,1773235845142,-5979.53288449,0.0002,2]
[408206462,1773235845154,-2509.07303865,0.0002,2]
[408206463,1773235845165,-17503.781854,0.0002,2]
[408206464,1773235845176,-1571.09713304,0.0002,2]
[408206465,1773235845187,-1030.1308482,0.0002,2]
[408206466,1773235845198,-1521.12596407,0.0002,2]
[408206467,1773235845209,-334.73649522,0.0002,2]
[408206468,1773235845264,-155.48869606,0.0002,2]
[408206469,1773235845276,-553.81447067,0.0002,2]
[408206470,1773235845291,-26854.82839207,0.0002,2]
[408206471,1773235845300,-158.53,0.0002,7]
[408206472,1773235845309,-2150.31,0.0002,2]
[408206473,1773235845318,-47155.28,0.0002,2]
[408206474,1773235845328,-2024101.05160819,0.0002,2]
[408206475,1773235845339,-5863.04472289,0.0002,2]
[408206476,1773235845350,-2343.68669856,0.0002,2]
[408206477,1773235845361,-627.6366838,0.0002,2]
[408206478,1773235845372,-952.81499817,0.0002,2]
[408206479,1773235845384,-4131.7238808,0.0002,2]
[408206480,1773235845395,-3116.55582179,0.0002,2]
[408206491,1773235846158,-1434.61950838,0.0002,2]
[408206493,1773235846171,-400.88914376,0.0002,2]
[408206495,1773235846182,-3942.85866369,0.0002,2]
[408206496,1773235846198,-608.21731146,0.0002,2]
[408206497,1773235846307,-11172.90517487,0.0002,2]
[408206498,1773235846318,-3059.55,0.0002,2]
[408206499,1773235846330,-1180.95304529,0.0002,2]
[408206500,1773235846341,-727.5357486,0.0002,2]
[408206501,1773235846500,-500.0,0.00019998,2]
[408206502,1773235846509,-3597.63188809,0.0002,2]
[408206503,1773235846521,-547.44,0.0002,2]
[408206504,1773235846532,-16008.06939217,0.0002,2]
[408206505,1773235846543,-581.8392108,0.0002,2]
[408206521,1773235892017,479.7863268,0.00047473,30]
[408206528,1773236046874,6888.0,0.00047473,30]
[408206532,1773236139068,-356.60272819,0.00016533,2]
[408206538,1773236316907,5000.0,0.00014399,2]
[408206540,1773236336486,40000.0,0.0004746,120]
[408206541,1773236337580,500.0,0.00014,2]
[408206542,1773236363808,1000.0,0.0004746,120]
[408206545,1773236454488,-1767.23,0.00014399,2]
[408206546,1773236454516,-269.0,0.00014399,2]
[408206547,1773236552659,43697.11210635,0.0004746,120]
[408206548,1773236610774,207.784981,0.00047461,120]
[408206550,1773236834896,500.0,0.00047461,120]
[408206551,1773236835462,743.50770149,0.00047461,120]
[408206552,1773236836107,170.0,0.00047461,120]
[408206553,1773236836164,500.0,0.00047461,120]
[408206554,1773236836751,170.0,0.00047461,120]
[408206555,1773236837515,151.0,0.00047461,120]
[408206556,1773236837926,500.0,0.00047461,120]
[408206557,1773236838153,151.0,0.00047461,120]
[408206558,1773236838560,500.0,0.00047461,120]
[408206559,1773236838811,151.0,0.00047461,120]
[408206560,1773236839207,500.0,0.00047461,120]
[408206561,1773236839266,10000.0,0.00047461,120]
[408206562,1773236839429,151.0,0.00047461,120]
[408206563,1773236839813,500.0,0.00047461,120]
[408206564,1773236840063,151.0,0.00047461,120]
[408206565,1773236840467,500.0,0.00047461,120]
[408206566,1773236840754,151.0,0.00047461,120]
[408206567,1773236840986,290.26104003,0.00047461,120]
[408206568,1773236841181,500.0,0.00047461,120]
[408206569,1773236841439,151.0,0.00047461,120]
[408206570,1773236841803,500.0,0.00047461,120]
[408206571,1773236842082,151.0,0.00047461,120]
[408206572,1773236842444,500.0,0.00047461,120]
[408206573,1773236842714,151.0,0.00047461,120]
[408206574,1773236843103,500.0,0.00047461,120]
[408206575,1773236843736,500.0,0.00047461,120]
[408206576,1773236844363,500.0,0.00047461,120]
[408206577,1773236844743,200.0,0.00047461,120]
[408206578,1773236845015,500.0,0.00047461,120]
[408206579,1773236845658,500.0,0.00047461,120]
[408206580,1773236846527,500.0,0.00047461,120]
[408206581,1773236847655,500.0,0.00047461,120]
[408206582,1773236848287,500.0,0.00047461,120]
[408206583,1773236849254,500.0,0.00047461,120]
[408206584,1773236849702,500.0,0.00047461,120]
[408206585,1773236851617,500.0,0.00047461,120]
[408206586,1773236852407,500.0,0.00047461,120]
[408206587,1773236892375,193.3919763,0.00047461,120]
[408206588,1773236893090,378.12827149,0.00047461,120]
[408206589,1773236894485,500.0,0.00047461,120]
[408206590,1773236895085,500.0,0.00047461,120]
[408206591,1773236899934,500.0,0.00047461,120]
[408206592,1773236903461,500.0,0.00047461,120]
[408206593,1773236903864,500.0,0.00047461,120]
[408206594,1773236904995,500.0,0.00047461,120]
[408206595,1773236905612,500.0,0.00047461,120]
[408206596,1773236906260,500.0,0.00047461,120]
[408206597,1773236906891,500.0,0.00047461,120]
[408206598,1773236907541,500.0,0.00047461,120]
[408206600,1773236948631,247.0,0.00014399,2]
[408206601,1773236952221,-576.74098772,0.000145,2]
[408206602,1773236967857,877.45,0.00047461,30]
[408206619,1773237031419,-423.25901228,0.000145,2]
[408206620,1773237031429,-250.0,0.00015,2]
[408206621,1773237031438,-300.0,0.0001595,2]
[408206622,1773237031449,-1597.19060774,0.00016271,2]
[408206623,1773237031458,-355.42956672,0.00016533,2]
[408206624,1773237031469,-380.74886578,0.00016533,2]
[408206625,1773237031481,-618.02883931,0.00016533,2]
[408206626,1773237031491,-166.99,0.00016712,2]
[408206627,1773237031504,-354.80481573,0.000179,2]
[408206628,1773237031513,-414.49111118,0.000179,2]
[408206629,1773237031522,-414.49111115,0.000179,2]
[408206630,1773237031532,-1200.0,0.00017941,2]
[408206631,1773237031541,-414.49111115,0.00017942,2]
[408206632,1773237031550,-29670.0,0.00017971,2]
[408206633,1773237031560,-630.15,0.00018224,2]
[408206634,1773237031570,-1141.44,0.00018275,2]
[408206635,1773237031579,-300.0,0.00018426,2]
[408206636,1773237031590,-792.35243313,0.00018427,2]
[408206637,1773237031599,-1265.09428998,0.00018463,2]
[408206638,1773237031610,-194.571013,0.00018529,7]
[408206639,1773237031619,-381.016127,0.00018692,7]
[408206640,1773237031629,-414.49111115,0.00018696,2]
[408206641,1773237031639,-1141.44,0.00018732,2]
[408206642,1773237031648,-500.0,0.00018777,2]
[408206643,1773237031657,-500.0,0.00018796,2]
[408206644,1773237031667,-500.0,0.00018877,2]
[408206645,1773237031676,-1004.88354371,0.000189,2]
[408206646,1773237031686,-326.38,0.0001893,2]
[408206647,1773237031695,-200.0,0.0001893,2]
[408206648,1773237031705,-1349.05,0.0001893,2]
[408206649,1773237031714,-2578.96,0.0001903,2]
[408206650,1773237031725,-2416.5739516,0.00019058,2]
[408206652,1773237031734,-630.15,0.00019135,2]
[408206654,1773237031744,-1141.44,0.00019189,2]
[408206656,1773237031753,-8624.9568,0.00019239,2]
[408206657,1773237031762,-238.36641352,0.00019318,2]
[408206658,1773237031771,-1616.01,0.00019339,2]
[408206659,1773237031781,-299.99,0.00019339,7]
[408206660,1773237031790,-9999.99,0.00019339,2]
[408206661,1773237031799,-719.21,0.00019339,2]
[408206662,1773237031808,-9999.99,0.00019339,2]
[408206663,1773237031819,-39934.11,0.00019339,2]
[408206664,1773237031827,-150.99,0.00019339,2]
[408206665,1773237031836,-2049.82,0.00019339,2]
[408206666,1773237031846,-1566.67,0.00019339,2]
[408206667,1773237031856,-9999.99,0.00019339,2]
[408206668,1773237031866,-696.81,0.00019339,2]
[408206669,1773237031879,-547.09,0.00019339,2]
[408206670,1773237031888,-999.99,0.00019339,2]
[408206671,1773237031897,-500.0,0.00019373,2]
[408206672,1773237031907,-500.0,0.00019373,2]
[408206673,1773237031916,-500.0,0.00019373,2]
[408206674,1773237031926,-501.97456647,0.00019373,2]
[408206675,1773237031935,-500.0,0.00019373,2]
[408206676,1773237031944,-504.98137836,0.00019373,2]
[408206677,1773237031953,-310.41600535,0.00019451,2]
[408206678,1773237031963,-2452.17764052,0.00019461,2]
[408206679,1773237032133,-16382.98496983,0.00019461,2]
[408206680,1773237032144,-19134.61619534,0.00019461,2]
[408206681,1773237032154,-405.86,0.00019516,2]
[408206682,1773237032163,-400.0,0.000196,7]
[408206683,1773237032173,-200.0,0.000196,7]
[408206684,1773237032183,-150.0,0.00019616,2]
[408206685,1773237032192,-150.0,0.00019616,2]
[408206686,1773237032201,-150.0,0.00019616,2]
[408206687,1773237032215,-500.0,0.00019616,2]
[408206688,1773237032228,-154.61846768,0.00019616,2]
[408206689,1773237032237,-150.0,0.00019616,2]
[408206690,1773237032246,-500.0,0.00019616,2]
[408206691,1773237032256,-1141.44,0.00019646,2]
[408206692,1773237032266,-255.47740234,0.00019671,2]
[408206693,1773237032275,-150.0,0.00019671,2]
[408206694,1773237032284,-510.0,0.00019671,2]
[408206695,1773237032295,-150.0,0.00019671,2]
[408206696,1773237032305,-500.0,0.00019671,2]
[408206697,1773237032314,-1680.0,0.00019673,2]
[408206698,1773237032324,-172.95802059,0.00019675,2]
[408206699,1773237032333,-800.0,0.000197,7]
[408206700,1773237032342,-400.0,0.000197,7]
[408206701,1773237032351,-150.0,0.00019725,2]
[408206702,1773237032363,-500.0,0.00019725,2]
[408206703,1773237032372,-150.0,0.00019725,2]
[408206704,1773237032382,-150.0,0.00019725,2]
[408206705,1773237032391,-150.0,0.00019725,2]
[408206706,1773237032401,-500.0,0.00019725,2]
[408206707,1773237032411,-500.0,0.00019725,2]
[408206708,1773237032420,-150.0,0.00019725,2]
[408206709,1773237032429,-150.0,0.00019725,2]
[408206710,1773237032439,-150.0,0.00019725,2]
[408206711,1773237032448,-150.0,0.00019725,2]
[408206712,1773237032458,-200.0,0.00019726,2]
[408206713,1773237032468,-200.0,0.00019726,2]
[408206714,1773237032477,-500.0,0.00019726,2]
[408206715,1773237032487,-575.99,0.00019726,2]
[408206716,1773237032497,-7947.32218017,0.0001976,2]
[408206717,1773237032507,-500.0,0.0001978,2]
[408206718,1773237032516,-150.0,0.0001978,2]
[408206719,1773237032526,-150.0,0.0001978,2]
[408206720,1773237032536,-150.0,0.0001978,2]
[408206721,1773237032545,-519.05367316,0.0001978,2]
[408206722,1773237032555,-500.0,0.0001978,2]
[408206723,1773237032564,-150.0,0.0001978,2]
[408206724,1773237032574,-150.0,0.0001978,2]
[408206725,1773237032583,-150.0,0.0001978,2]
[408206726,1773237032593,-150.0,0.0001978,2]
[408206727,1773237032604,-500.0,0.0001978,2]
[408206728,1773237032614,-2500.0,0.00019789,2]
[408206729,1773237032623,-374.671,0.000198,2]
[408206730,1773237032633,-374.67101,0.000198,2]
[408206731,1773237032642,-1200.0,0.000198,7]
[408206732,1773237032651,-600.0,0.000198,7]
[408206733,1773237032661,-249.0,0.00019835,2]
[408206734,1773237032670,-174.0,0.00019835,2]
[408206735,1773237032679,-150.0,0.00019835,2]
[408206736,1773237032688,-500.0,0.00019835,2]
[408206737,1773237032697,-150.0,0.00019835,2]
[408206738,1773237032707,-150.0,0.00019835,2]
[408206739,1773237032716,-200.0,0.00019835,2]
[408206740,1773237032725,-150.0,0.00019835,2]
[408206741,1773237032735,-395.0,0.00019835,2]
[408206742,1773237032745,-200.0,0.0001984,2]
[408206743,1773237032754,-813.7623,0.00019844,2]
[408206744,1773237032763,-208.55616401,0.00019889,2]
[408206745,1773237032773,-500.0,0.00019889,2]
[408206746,1773237032782,-150.0,0.00019889,2]
[408206747,1773237032791,-150.0,0.00019889,2]
[408206748,1773237032802,-150.0,0.00019889,2]
[408206749,1773237032812,-4629.2875,0.00019898,2]
[408206750,1773237032822,-270.69367005,0.000199,5]
[408206751,1773237032831,-785.95897004,0.000199,5]
[408206752,1773237032840,-852.83729929,0.000199,5]
[408206753,1773237032850,-528.32632005,0.000199,5]
[408206754,1773237032862,-676.73166358,0.000199,5]
[408206755,1773237032871,-2088.63,0.000199,2]
[408206756,1773237032881,-444.84561066,0.000199,2]
[408206757,1773237032890,-1394.48681386,0.000199,7]
[408206758,1773237032903,-205.51318614,0.000199,7]
[408206759,1773237032913,-800.0,0.000199,7]
[408206760,1773237032922,-741.9563883,0.000199,2]
[408206761,1773237032931,-1039.2896574,0.000199,2]
[408206762,1773237032941,-1226.60003473,0.000199,2]
[408206763,1773237032950,-1484.17227489,0.000199,2]
[408206764,1773237032959,-500.0,0.00019944,2]
[408206765,1773237032969,-150.0,0.00019944,2]
[408206766,1773237032978,-205.0,0.00019944,2]
[408206767,1773237032993,-150.0,0.00019944,2]
[408206768,1773237033006,-502.81664943,0.00019973,2]
[408206769,1773237033015,-3664.0,0.00019973,2]
[408206770,1773237033025,-2393.0,0.00019973,2]
[408206771,1773237033034,-500.0,0.00019973,2]
[408206772,1773237033044,-485.07925419,0.00019973,2]
[408206773,1773237033053,-250.0,0.00019985,2]
[408206774,1773237033063,-335.25,0.00019989,2]
[408206775,1773237033073,-163.04146088,0.0001999,2]
[408206776,1773237033082,-335.25,0.0001999,2]
[408206777,1773237033092,-335.25,0.0001999,2]
[408206778,1773237033102,-335.25,0.0001999,2]
[408206779,1773237033112,-335.25,0.0001999,2]
[408206780,1773237033122,-151.0,0.00019997,2]
[408206781,1773237033133,-2096.3741028,0.00019997,2]
[408206782,1773237033142,-2793.9369215,0.00019997,2]
[408206783,1773237033152,-554.34014391,0.00019998,2]
[408206784,1773237033162,-500.0,0.00019998,2]
[408206785,1773237033171,-500.0,0.00019998,2]
[408206786,1773237033180,-500.0,0.00019998,2]
[408206787,1773237033190,-500.0,0.00019998,2]
[408206788,1773237033199,-500.0,0.00019998,2]
[408206789,1773237033459,-500.0,0.00019998,2]
[408206790,1773237033470,-500.0,0.00019998,2]
[408206791,1773237033480,-500.0,0.00019998,2]
[408206792,1773237033490,-500.0,0.00019998,2]
[408206793,1773237033499,-500.0,0.00019998,2]
[408206794,1773237033510,-500.0,0.00019998,2]
[408206795,1773237033519,-500.0,0.00019998,2]
[408206796,1773237033528,-500.0,0.00019998,2]
[408206797,1773237033538,-500.0,0.00019998,2]
[408206798,1773237033548,-500.0,0.00019998,2]
[408206799,1773237033558,-500.0,0.00019998,2]
[408206800,1773237033568,-500.0,0.00019998,2]
[408206801,1773237033577,-500.0,0.00019998,2]
[408206802,1773237033587,-500.0,0.00019998,2]
[408206803,1773237033597,-500.0,0.00019998,2]
[408206804,1773237033607,-40.03043788,0.00019999,2]
[408206805,1773237033619,-459.96956212,0.00019999,2]
[408206806,1773237033629,-196.0,0.00019999,2]
[408206807,1773237033638,-208.0,0.00019999,2]
[408206808,1773237033647,-300.0,0.00019999,2]
[408206809,1773237033657,-666.0,0.00019999,2]
[408206810,1773237033666,-300.0,0.00019999,2]
[408206811,1773237033675,-300.0,0.00019999,2]
[408206812,1773237033685,-500.0,0.00019999,2]
[408206813,1773237033694,-500.0,0.00019999,2]
[408206814,1773237033704,-500.0,0.00019999,2]
[408206815,1773237033714,-500.0,0.00019999,2]
[408206816,1773237033723,-500.0,0.00019999,2]
[408206817,1773237033732,-500.0,0.00019999,2]
[408206818,1773237033742,-258.73962788,0.00019999,2]
[408206819,1773237033753,-241.26037212,0.00019999,2]
[408206820,1773237033763,-500.0,0.00019999,2]
[408206821,1773237033772,-500.0,0.00019999,2]
[408206822,1773237033782,-359.77506587,0.00019999,2]
[408206823,1773237033791,-500.0,0.00019999,2]
[408206824,1773237033800,-368.80956201,0.00019999,2]
[408206825,1773237033812,-138.72467995,0.00019999,2]
[408206826,1773237033821,-500.0,0.00019999,2]
[408206827,1773237033831,-500.0,0.00019999,2]
[408206828,1773237033840,-89.9850005,0.00019999,2]
[408206829,1773237033851,-413.87749368,0.00019999,2]
[408206830,1773237033862,-463.4000001,0.00019999,2]
[408206831,1773237033871,-373.98036064,0.00019999,2]
[408206832,1773237033883,-126.01963936,0.00019999,2]
[408206833,1773237033892,-500.0,0.00019999,2]
[408206834,1773237033901,-500.0,0.00019999,2]
[408206835,1773237033911,-500.0,0.00019999,2]
[408206836,1773237033920,-500.0,0.00019999,2]
[408206837,1773237033930,-500.0,0.00019999,2]
[408206838,1773237033939,-500.0,0.00019999,2]
[408206839,1773237033948,-500.0,0.00019999,2]
[408206840,1773237033959,-500.0,0.00019999,2]
[408206841,1773237033968,-500.0,0.00019999,2]
[408206842,1773237033977,-500.0,0.00019999,2]
[408206843,1773237033986,-437.96857115,0.00019999,2]
[408206844,1773237033997,-68.85274038,0.00019999,2]
[408206845,1773237034008,-498.66104076,0.00019999,2]
[408206846,1773237034019,-1.33895924,0.00019999,2]
[408206847,1773237034029,-500.0,0.00019999,2]
[408206848,1773237034038,-500.0,0.00019999,2]
[408206849,1773237034048,-500.0,0.00019999,2]
[408206850,1773237034059,-298.66104076,0.00019999,2]
[408206852,1773237037480,-309.21999601,0.00019999,2]
[408206853,1773237037490,-500.42,0.00019999,2]
[408206854,1773237037500,-500.42,0.00019999,2]
[408206855,1773237037509,-500.42,0.00019999,2]
[408206856,1773237037519,-500.42,0.00019999,2]
[408206857,1773237037531,-500.42,0.00019999,2]
[408206858,1773237037540,-500.42,0.00019999,2]
[408206859,1773237037550,-500.42,0.00019999,2]
[408206860,1773237037561,-500.42,0.00019999,2]
[408206861,1773237037571,-500.42,0.00019999,2]
[408206862,1773237037581,-500.42,0.00019999,2]
[408206863,1773237037591,-500.0,0.00019999,2]
[408206864,1773237037601,-500.0,0.00019999,2]
[408206865,1773237037611,-500.0,0.00019999,2]
[408206866,1773237037621,-500.0,0.00019999,2]
[408206867,1773237037631,-221.07,0.00019999,2]
[408206868,1773237037641,-500.0,0.00019999,2]
[408206869,1773237037650,-500.0,0.00019999,2]
[408206870,1773237037659,-500.0,0.00019999,2]
[408206871,1773237037668,-2665.91406298,0.00019999,2]
[408206872,1773237037684,-1190.09593702,0.00019999,2]
[408206873,1773237037693,-178.759,0.00019999,2]
[408206874,1773237037707,-505.20001815,0.00019999,2]
[408206875,1773237037716,-591.39,0.00019999,2]
[408206876,1773237037726,-591.39,0.00019999,2]
[408206877,1773237037736,-591.39,0.00019999,2]
[408206878,1773237037746,-591.39,0.00019999,2]
[408206879,1773237037755,-591.39,0.00019999,2]
[408206880,1773237037765,-591.39,0.00019999,2]
[408206881,1773237037775,-591.39,0.00019999,2]
[408206882,1773237037784,-591.39,0.00019999,2]
[408206883,1773237037794,-591.39,0.00019999,2]
[408206884,1773237037803,-591.39,0.00019999,2]
[408206885,1773237037813,-591.39,0.00019999,2]
[408206886,1773237037822,-392.45504483,0.00019999,2]
[408206887,1773237037834,-107.54495517,0.00019999,2]
[408206888,1773237037843,-500.0,0.00019999,2]
[408206889,1773237037853,-500.0,0.00019999,2]
[408206890,1773237037863,-500.0,0.00019999,2]
[408206891,1773237037873,-500.0,0.00019999,2]
[408206893,1773237037882,-500.0,0.00019999,2]
[408206895,1773237037891,-500.0,0.00019999,2]
[408206897,1773237037904,-500.0,0.00019999,2]
[408206899,1773237037913,-500.0,0.00019999,2]
[408206901,1773237037923,-500.0,0.00019999,2]
[408206903,1773237037932,-500.0,0.00019999,2]
[408206905,1773237037942,-500.0,0.00019999,2]
[408206907,1773237037952,-500.0,0.00019999,2]
[408206909,1773237037962,-500.0,0.00019999,2]
[408206911,1773237037971,-3000.0,0.00019999,2]
[408206913,1773237037982,-3000.0,0.00019999,7]
[408206915,1773237037991,-500.0,0.00019999,2]
[408206917,1773237038000,-504.64296701,0.00019999,2]
[408206919,1773237038010,-500.0,0.00019999,2]
[408206921,1773237038019,-500.0,0.00019999,2]
[408206923,1773237038029,-500.0,0.00019999,2]
[408206925,1773237038038,-421.01785379,0.00019999,2]
[408206927,1773237038048,-500.0,0.00019999,2]
[408206929,1773237038057,-500.0,0.00019999,2]
[408206931,1773237038067,-540.06969346,0.00019999,2]
[408206933,1773237038078,-500.0,0.00019999,2]
[408206934,1773237038087,-500.0,0.00019999,2]
[408206937,1773237038101,-500.0,0.00019999,2]
[408206939,1773237038111,-500.0,0.00019999,2]
[408206941,1773237038120,-500.0,0.00019999,2]
[408206943,1773237038130,-500.0,0.00019999,2]
[408206945,1773237038141,-500.0,0.00019999,2]
[408206947,1773237038150,-500.0,0.00019999,2]
[408206949,1773237038160,-500.0,0.00019999,2]
[408206951,1773237038169,-500.0,0.00019999,2]
[408206953,1773237038179,-500.0,0.00019999,2]
[408206955,1773237038188,-500.0,0.00019999,2]
[408206957,1773237038198,-500.0,0.00019999,2]
[408206959,1773237038207,-500.0,0.00019999,2]
[408206961,1773237038217,-500.0,0.00019999,2]
[408206963,1773237038230,-500.0,0.00019999,2]
[408206965,1773237038240,-500.0,0.00019999,2]
[408206967,1773237038249,-500.0,0.00019999,2]
[408206969,1773237038259,-500.0,0.00019999,2]
[408206971,1773237038271,-500.0,0.00019999,2]
[408206973,1773237038280,-500.0,0.00019999,2]
[408206975,1773237038290,-500.0,0.00019999,2]